[Event "Early-Titled-Tuesday-Blitz-May-14-2024"]
[Site "Chess.com"]
[Date "2024.05.14"]
[Round "4"]
[White "RantomOpening"]
[Black "Nechitaylo_Nikita"]
[Result "1-0"]
[WhiteElo "2547"]
[BlackElo "2349"]
[TimeControl "180+1"]
[EndTime "8:39:54 PDT"]
[Termination "RantomOpening won on time"]

1. b3 {[%clk 0:03:00]} 1... d5 {[%clk 0:02:59.9]} 2. Bb2 {[%clk 0:02:59.7]} 2...
Nf6 {[%clk 0:02:59.3]} 3. e3 {[%clk 0:02:59]} 3... g6 {[%clk 0:02:58.6]} 4. g4
{[%clk 0:02:54.3]} 4... Bxg4 {[%clk 0:02:49.5]} 5. Nf3 {[%clk 0:02:54.2]} 5...
Bg7 {[%clk 0:02:43.4]} 6. Be2 {[%clk 0:02:54.1]} 6... Nc6 {[%clk 0:02:39.6]} 7.
Rg1 {[%clk 0:02:54.3]} 7... Qd7 {[%clk 0:02:36.4]} 8. d3 {[%clk 0:02:53.8]} 8...
O-O-O {[%clk 0:02:28.8]} 9. Nbd2 {[%clk 0:02:53.2]} 9... h5 {[%clk 0:01:51.4]}
10. a4 {[%clk 0:02:51.8]} 10... Rhe8 {[%clk 0:01:45.9]} 11. a5 {[%clk
0:02:51.2]} 11... e5 {[%clk 0:01:46.2]} 12. a6 {[%clk 0:02:50.6]} 12... b6
{[%clk 0:01:46.1]} 13. d4 {[%clk 0:02:48.6]} 13... e4 {[%clk 0:01:33.1]} 14. Ng5
{[%clk 0:02:44.2]} 14... Bh6 {[%clk 0:01:07.4]} 15. h4 {[%clk 0:02:42.7]} 15...
Bxg5 {[%clk 0:00:47.6]} 16. hxg5 {[%clk 0:02:43.6]} 16... Bxe2 {[%clk
0:00:30.5]} 17. Qxe2 {[%clk 0:02:42.9]} 17... Ng4 {[%clk 0:00:23.4]} 18. O-O-O
{[%clk 0:02:39.1]} 18... Qf5 {[%clk 0:00:15.8]} 19. Rdf1 {[%clk 0:02:39.4]}
19... Nh2 {[%clk 0:00:12.8]} 20. Rd1 {[%clk 0:02:38.1]} 20... Nf3 {[%clk
0:00:13.3]} 21. Nxf3 {[%clk 0:02:35.4]} 21... Qxf3 {[%clk 0:00:14.2]} 22. Qxf3
{[%clk 0:02:35.7]} 22... exf3 {[%clk 0:00:14]} 23. Rg3 {[%clk 0:02:33.2]} 23...
Re4 {[%clk 0:00:09.2]} 24. Rxf3 {[%clk 0:02:33.2]} 24... Rd7 {[%clk 0:00:09.8]}
25. Rg1 {[%clk 0:02:25.4]} 25... Nb4 {[%clk 0:00:09.6]} 26. Kd2 {[%clk
0:02:18.4]} 26... Nxa6 {[%clk 0:00:09.4]} 27. Ra1 {[%clk 0:02:18.8]} 27... Kb7
{[%clk 0:00:09.2]} 28. Rg1 {[%clk 0:02:15.8]} 28... c5 {[%clk 0:00:07.1]} 29.
Rf6 {[%clk 0:02:14.5]} 29... cxd4 {[%clk 0:00:04.1]} 30. Bxd4 {[%clk 0:02:15.4]}
30... Rc7 {[%clk 0:00:02.3]} 31. Rg3 {[%clk 0:02:15.2]} 31... Nc5 {[%clk
0:00:02.7]} 32. Rgf3 {[%clk 0:02:14.6]} 32... Ne6 {[%clk 0:00:02.9]} 33. Rxf7
{[%clk 0:02:14]} 33... Rxf7 {[%clk 0:00:02.8]} 34. Rxf7+ {[%clk 0:02:14.9]}
34... Kc6 {[%clk 0:00:02.8]} 35. Rf6 {[%clk 0:02:14.6]} 35... Kd7 {[%clk
0:00:03]} 36. Rxg6 {[%clk 0:02:14.9]} 36... Nxd4 {[%clk 0:00:03.3]} 37. exd4
{[%clk 0:02:15.8]} 37... Rxd4+ {[%clk 0:00:04.2]} 38. Ke3 {[%clk 0:02:14.7]}
38... Rg4 {[%clk 0:00:03.3]} 39. f3 {[%clk 0:02:14.4]} 39... Rg2 {[%clk
0:00:03]} 40. Rg7+ {[%clk 0:02:14.8]} 40... Kc6 {[%clk 0:00:03.3]} 41. f4 {[%clk
0:02:15.3]} 41... Rxc2 {[%clk 0:00:03]} 42. f5 {[%clk 0:02:15.9]} 42... Rc3+
{[%clk 0:00:02.3]} 43. Kf4 {[%clk 0:02:15.3]} 43... Kd6 {[%clk 0:00:02.4]} 44.
f6 {[%clk 0:02:14.8]} 44... Rxb3 {[%clk 0:00:03]} 45. f7 {[%clk 0:02:13.7]}
45... Ke7 {[%clk 0:00:03.4]} 46. g6 {[%clk 0:02:13.6]} 46... Rb4+ {[%clk
0:00:03.3]} 47. Kg5 {[%clk 0:02:12.8]} 47... Rg4+ {[%clk 0:00:02.8]} 48. Kxh5
{[%clk 0:02:13.1]} 48... Rf4 {[%clk 0:00:03.3]} 49. Rg8 {[%clk 0:02:11.3]} 49...
d4 {[%clk 0:00:01.9]} 50. Re8+ {[%clk 0:02:11.6]} 50... Kd7 {[%clk 0:00:02.4]}
51. f8=Q {[%clk 0:02:09]} 51... Rxf8 {[%clk 0:00:02.7]} 52. Rxf8 {[%clk
0:02:09.9]} 52... a5 {[%clk 0:00:02.3]} 53. Rf3 {[%clk 0:02:10.8]} 53... b5
{[%clk 0:00:02.1]} 54. g7 {[%clk 0:02:11.7]} 1-0

[Event "Early-Titled-Tuesday-Blitz-May-14-2024"]
[Site "Chess.com"]
[Date "2024.05.14"]
[Round "4"]
[White "invisible_s0ul"]
[Black "RuperezA"]
[Result "0-1"]
[WhiteElo "2335"]
[BlackElo "2666"]
[TimeControl "180+1"]
[EndTime "8:39:57 PDT"]
[Termination "RuperezA won by resignation"]

1. e4 {[%clk 0:03:00.9]} 1... e6 {[%clk 0:02:59.4]} 2. d4 {[%clk 0:02:58.8]}
2... d5 {[%clk 0:03:00.3]} 3. exd5 {[%clk 0:02:59]} 3... exd5 {[%clk 0:03:00.5]}
4. Bd3 {[%clk 0:02:57.8]} 4... Nc6 {[%clk 0:02:56.9]} 5. c3 {[%clk 0:02:57.6]}
5... Bd6 {[%clk 0:02:56.5]} 6. Ne2 {[%clk 0:02:54.2]} 6... Nge7 {[%clk
0:02:54.8]} 7. O-O {[%clk 0:02:49.8]} 7... Bg4 {[%clk 0:02:48.5]} 8. f3 {[%clk
0:02:48.1]} 8... Bh5 {[%clk 0:02:47.4]} 9. Nf4 {[%clk 0:02:46.5]} 9... Bg6
{[%clk 0:02:44.3]} 10. Qc2 {[%clk 0:02:28]} 10... Qd7 {[%clk 0:02:40.1]} 11. b4
{[%clk 0:02:18.3]} 11... O-O {[%clk 0:02:18.2]} 12. Nxg6 {[%clk 0:02:12.2]}
12... hxg6 {[%clk 0:02:19.1]} 13. a4 {[%clk 0:02:03.4]} 13... a5 {[%clk
0:02:18]} 14. b5 {[%clk 0:02:03.3]} 14... Nd8 {[%clk 0:02:18.9]} 15. Ba3 {[%clk
0:01:57]} 15... Ne6 {[%clk 0:02:15.9]} 16. Bxd6 {[%clk 0:01:53.9]} 16... Qxd6
{[%clk 0:02:16.8]} 17. Na3 {[%clk 0:01:52.8]} 17... Nf4 {[%clk 0:02:04.7]} 18.
c4 {[%clk 0:01:48]} 18... dxc4 {[%clk 0:02:02.7]} 19. Qxc4 {[%clk 0:01:44.8]}
19... Rfd8 {[%clk 0:01:43.8]} 20. Nc2 {[%clk 0:01:36.1]} 20... Ned5 {[%clk
0:01:35.6]} 21. Be4 {[%clk 0:01:21.7]} 21... c6 {[%clk 0:01:24.4]} 22. Rab1
{[%clk 0:00:41.1]} 22... cxb5 {[%clk 0:01:13.2]} 23. Rxb5 {[%clk 0:00:40.1]}
23... Rac8 {[%clk 0:01:13]} 24. Qb3 {[%clk 0:00:32]} 24... b6 {[%clk 0:01:07.5]}
25. Rd1 {[%clk 0:00:21.3]} 25... Ne2+ {[%clk 0:01:03.2]} 26. Kh1 {[%clk
0:00:18.6]} 26... Nec3 {[%clk 0:01:04.1]} 27. Bxd5 {[%clk 0:00:13.7]} 27... Nxd1
{[%clk 0:00:59.9]} 28. Bxf7+ {[%clk 0:00:13.4]} 28... Kh7 {[%clk 0:00:59.4]} 29.
Qd3 {[%clk 0:00:03.6]} 29... Nf2+ {[%clk 0:00:57.1]} 0-1

[Event "Early-Titled-Tuesday-Blitz-May-14-2024"]
[Site "Chess.com"]
[Date "2024.05.14"]
[Round "4"]
[White "Zarinur"]
[Black "GothamChess"]
[Result "0-1"]
[WhiteElo "2556"]
[BlackElo "2728"]
[TimeControl "180+1"]
[EndTime "8:39:58 PDT"]
[Termination "GothamChess won by checkmate"]

1. e4 {[%clk 0:03:00.9]} 1... d5 {[%clk 0:02:59.2]} 2. exd5 {[%clk 0:03:00.1]}
2... Qxd5 {[%clk 0:03:00.1]} 3. Nc3 {[%clk 0:03:00.2]} 3... Qa5 {[%clk
0:03:00.4]} 4. Bc4 {[%clk 0:03:00.4]} 4... Nf6 {[%clk 0:03:00.6]} 5. d3 {[%clk
0:03:00.7]} 5... Bg4 {[%clk 0:02:59.2]} 6. f3 {[%clk 0:03:00.8]} 6... Bd7 {[%clk
0:02:44.9]} 7. Bd2 {[%clk 0:02:57.8]} 7... Qb6 {[%clk 0:02:43]} 8. Bb3 {[%clk
0:02:52.7]} 8... e6 {[%clk 0:02:42.2]} 9. Qe2 {[%clk 0:02:45.8]} 9... Nc6 {[%clk
0:02:36.6]} 10. Be3 {[%clk 0:02:12.8]} 10... Qa5 {[%clk 0:02:23.5]} 11. Nh3
{[%clk 0:02:01]} 11... Bb4 {[%clk 0:02:12.6]} 12. Qd2 {[%clk 0:01:55.4]} 12...
Nd5 {[%clk 0:02:05.9]} 13. Bxd5 {[%clk 0:01:45.6]} 13... exd5 {[%clk 0:02:06]}
14. d4 {[%clk 0:01:03.9]} 14... Bxh3 {[%clk 0:02:05.2]} 15. gxh3 {[%clk
0:01:03]} 15... O-O-O {[%clk 0:01:50.1]} 16. O-O {[%clk 0:00:31]} 16... Rhe8
{[%clk 0:01:27.6]} 17. Bf2 {[%clk 0:00:27.6]} 17... Re6 {[%clk 0:01:20.2]} 18.
Kh1 {[%clk 0:00:20.8]} 18... Rde8 {[%clk 0:01:17.7]} 19. Bg3 {[%clk 0:00:17.1]}
19... Bxc3 {[%clk 0:01:15.4]} 20. bxc3 {[%clk 0:00:16.8]} 20... Ne7 {[%clk
0:00:49.9]} 21. a4 {[%clk 0:00:06.5]} 21... Nf5 {[%clk 0:00:47.6]} 22. Ra3
{[%clk 0:00:04.3]} 22... Qa6 {[%clk 0:00:38.4]} 23. Qf4 {[%clk 0:00:04.7]} 23...
Qxf1# {[%clk 0:00:38.3]} 0-1

[Event "Early-Titled-Tuesday-Blitz-May-14-2024"]
[Site "Chess.com"]
[Date "2024.05.14"]
[Round "4"]
[White "kingofthenil"]
[Black "ahmedkandiliii"]
[Result "1-0"]
[WhiteElo "2840"]
[BlackElo "2610"]
[TimeControl "180+1"]
[EndTime "8:39:59 PDT"]
[Termination "kingofthenil won by checkmate"]

1. d4 {[%clk 0:02:54.5]} 1... Nf6 {[%clk 0:01:00.5]} 2. Bf4 {[%clk 0:02:45.7]}
2... e6 {[%clk 0:01:00.4]} 3. Nd2 {[%clk 0:02:45.1]} 3... c5 {[%clk 0:01:00.6]}
4. e3 {[%clk 0:02:45.2]} 4... cxd4 {[%clk 0:01:00.8]} 5. exd4 {[%clk 0:02:46.1]}
5... b6 {[%clk 0:00:57.8]} 6. Nc4 {[%clk 0:02:33.6]} 6... d5 {[%clk 0:00:55.2]}
7. Ne5 {[%clk 0:02:33.1]} 7... Bb7 {[%clk 0:00:55.4]} 8. Bb5+ {[%clk 0:02:28.2]}
8... Nbd7 {[%clk 0:00:51.9]} 9. Bg5 {[%clk 0:02:28]} 9... Bc8 {[%clk 0:00:38.3]}
10. Ngf3 {[%clk 0:02:25.3]} 10... Be7 {[%clk 0:00:33.3]} 11. Nc6 {[%clk
0:02:16.8]} 11... Qc7 {[%clk 0:00:32.6]} 12. Nxe7 {[%clk 0:02:15.7]} 12... Kxe7
{[%clk 0:00:32.5]} 13. O-O {[%clk 0:02:13.7]} 13... a6 {[%clk 0:00:31]} 14. Ba4
{[%clk 0:02:08.2]} 14... b5 {[%clk 0:00:30.1]} 15. Bb3 {[%clk 0:02:08.7]} 15...
h6 {[%clk 0:00:28.1]} 16. Bh4 {[%clk 0:02:07.6]} 16... Nb6 {[%clk 0:00:23.8]}
17. Re1 {[%clk 0:02:06]} 17... Re8 {[%clk 0:00:20.1]} 18. Ne5 {[%clk 0:02:05.7]}
18... Nc4 {[%clk 0:00:17.4]} 19. Qf3 {[%clk 0:02:00.9]} 19... g5 {[%clk
0:00:16.4]} 20. Bg3 {[%clk 0:01:59.5]} 20... Qb7 {[%clk 0:00:08.2]} 21. h4
{[%clk 0:01:35.6]} 21... Nxe5 {[%clk 0:00:04.7]} 22. Bxe5 {[%clk 0:01:34.3]}
22... Ne4 {[%clk 0:00:05]} 23. Rxe4 {[%clk 0:01:33]} 23... dxe4 {[%clk
0:00:04.5]} 24. Qf6+ {[%clk 0:01:31.8]} 24... Kf8 {[%clk 0:00:02.7]} 25. Qxh6+
{[%clk 0:01:22.2]} 25... Ke7 {[%clk 0:00:03.6]} 26. Qf6+ {[%clk 0:01:23.1]}
26... Kd7 {[%clk 0:00:03.9]} 27. Qxf7+ {[%clk 0:01:19.8]} 27... Re7 {[%clk
0:00:04.6]} 28. Bxe6+ {[%clk 0:01:19.6]} 28... Kd8 {[%clk 0:00:04.7]} 29. Qf8+
{[%clk 0:01:17.2]} 29... Re8 {[%clk 0:00:03.6]} 30. Bf6+ {[%clk 0:01:16.6]}
30... Kc7 {[%clk 0:00:03.3]} 31. Qc5+ {[%clk 0:01:15.5]} 31... Qc6 {[%clk
0:00:01.6]} 32. Be5+ {[%clk 0:01:16]} 32... Kb7 {[%clk 0:00:01.9]} 33. Bd5
{[%clk 0:01:16.5]} 33... Rxe5 {[%clk 0:00:02.2]} 34. Qxc6+ {[%clk 0:01:16.2]}
34... Ka7 {[%clk 0:00:01.9]} 35. Qc7+ {[%clk 0:01:16.6]} 35... Bb7 {[%clk
0:00:01.6]} 36. Qxb7# {[%clk 0:01:17.5]} 1-0

[Event "Early-Titled-Tuesday-Blitz-May-14-2024"]
[Site "Chess.com"]
[Date "2024.05.14"]
[Round "4"]
[White "pfalcon1949"]
[Black "MariaFominykh"]
[Result "0-1"]
[WhiteElo "1909"]
[BlackElo "2331"]
[TimeControl "180+1"]
[EndTime "8:40:01 PDT"]
[Termination "MariaFominykh won by resignation"]

1. e4 {[%clk 0:02:50]} 1... e6 {[%clk 0:02:59.9]} 2. d4 {[%clk 0:02:42.9]} 2...
d5 {[%clk 0:02:59.8]} 3. Nc3 {[%clk 0:02:42.8]} 3... Nf6 {[%clk 0:02:59.1]} 4.
e5 {[%clk 0:02:42.5]} 4... Nfd7 {[%clk 0:02:59.3]} 5. f4 {[%clk 0:02:43.1]} 5...
c5 {[%clk 0:02:59.7]} 6. Nf3 {[%clk 0:02:43.6]} 6... Nc6 {[%clk 0:03:00.3]} 7.
Be3 {[%clk 0:02:43.9]} 7... a6 {[%clk 0:03:00.7]} 8. Qd2 {[%clk 0:02:41.4]} 8...
b5 {[%clk 0:02:58.6]} 9. dxc5 {[%clk 0:02:40.8]} 9... Bxc5 {[%clk 0:02:57.8]}
10. Bd3 {[%clk 0:02:40.1]} 10... Qb6 {[%clk 0:02:55.9]} 11. Bxc5 {[%clk
0:02:38.8]} 11... Nxc5 {[%clk 0:02:55.4]} 12. O-O-O {[%clk 0:02:37.5]} 12... b4
{[%clk 0:02:52.7]} 13. Ne2 {[%clk 0:02:34.3]} 13... a5 {[%clk 0:02:48.5]} 14.
Ned4 {[%clk 0:02:32.6]} 14... Nxd3+ {[%clk 0:02:45.6]} 15. Qxd3 {[%clk
0:02:31.6]} 15... Ba6 {[%clk 0:02:45.6]} 16. Qd2 {[%clk 0:02:31]} 16... Rc8
{[%clk 0:02:43.9]} 17. Nxc6 {[%clk 0:02:29.9]} 17... Qxc6 {[%clk 0:02:29.8]} 18.
Kb1 {[%clk 0:02:28.3]} 18... O-O {[%clk 0:02:22.9]} 19. f5 {[%clk 0:02:28.3]}
19... exf5 {[%clk 0:02:18.6]} 20. Qxd5 {[%clk 0:02:15.3]} 20... Qxc2+ {[%clk
0:02:17.6]} 21. Ka1 {[%clk 0:02:14.9]} 21... Rc5 {[%clk 0:02:11.6]} 22. Qd7
{[%clk 0:02:00.4]} 22... Be2 {[%clk 0:01:54.2]} 23. Rb1 {[%clk 0:01:47.4]} 23...
Bxf3 {[%clk 0:01:49.6]} 24. gxf3 {[%clk 0:01:48.3]} 24... Rxe5 {[%clk 0:01:49]}
25. Rhc1 {[%clk 0:01:39.3]} 25... Qxh2 {[%clk 0:01:44]} 26. Rc8 {[%clk 0:01:39]}
26... g6 {[%clk 0:01:31.9]} 27. Rbc1 {[%clk 0:01:13.8]} 27... Rxc8 {[%clk
0:01:17.8]} 28. Rxc8+ {[%clk 0:00:57]} 28... Kg7 {[%clk 0:01:17.4]} 29. Qd1
{[%clk 0:00:28.9]} 29... Qf2 {[%clk 0:01:10.1]} 30. Rc1 {[%clk 0:00:23.6]} 30...
Re2 {[%clk 0:01:06.4]} 31. Rb1 {[%clk 0:00:18.7]} 31... h5 {[%clk 0:01:04.1]}
32. a4 {[%clk 0:00:13.1]} 32... bxa3 {[%clk 0:01:01.6]} 0-1

[Event "Early-Titled-Tuesday-Blitz-May-14-2024"]
[Site "Chess.com"]
[Date "2024.05.14"]
[Round "4"]
[White "Agibileg"]
[Black "OriTaichman"]
[Result "1-0"]
[WhiteElo "2903"]
[BlackElo "2612"]
[TimeControl "180+1"]
[EndTime "8:40:04 PDT"]
[Termination "Agibileg won on time"]

1. d4 {[%clk 0:03:00.8]} 1... Nf6 {[%clk 0:03:00]} 2. c4 {[%clk 0:03:00.9]} 2...
g6 {[%clk 0:03:00.1]} 3. Nc3 {[%clk 0:03:01.1]} 3... Bg7 {[%clk 0:03:00.7]} 4.
e4 {[%clk 0:03:01.3]} 4... O-O {[%clk 0:03:01.6]} 5. Be2 {[%clk 0:03:01.7]} 5...
d6 {[%clk 0:03:01.9]} 6. Nf3 {[%clk 0:03:02.2]} 6... e5 {[%clk 0:03:01.8]} 7.
O-O {[%clk 0:03:02.6]} 7... Nc6 {[%clk 0:03:02]} 8. d5 {[%clk 0:03:02.9]} 8...
Ne7 {[%clk 0:03:02.6]} 9. Nd2 {[%clk 0:03:03.4]} 9... Ne8 {[%clk 0:03:02.6]} 10.
b4 {[%clk 0:03:03.9]} 10... f5 {[%clk 0:03:02.7]} 11. c5 {[%clk 0:03:04.4]}
11... Nf6 {[%clk 0:03:01.5]} 12. a4 {[%clk 0:03:04.7]} 12... fxe4 {[%clk
0:03:00.4]} 13. Ndxe4 {[%clk 0:03:03.5]} 13... Nf5 {[%clk 0:03:00.7]} 14. Bg5
{[%clk 0:03:02.6]} 14... h6 {[%clk 0:02:59.3]} 15. Nxf6+ {[%clk 0:03:01.7]}
15... Bxf6 {[%clk 0:03:00.2]} 16. Bxf6 {[%clk 0:02:58.8]} 16... Qxf6 {[%clk
0:03:00.3]} 17. Ne4 {[%clk 0:02:59.1]} 17... Qe7 {[%clk 0:02:54.4]} 18. Bg4
{[%clk 0:02:55.8]} 18... Kh7 {[%clk 0:02:51.6]} 19. Rc1 {[%clk 0:02:54.7]} 19...
a5 {[%clk 0:02:45.8]} 20. b5 {[%clk 0:02:46.5]} 20... Nd4 {[%clk 0:02:32.1]} 21.
Bxc8 {[%clk 0:02:34.4]} 21... Raxc8 {[%clk 0:02:31.3]} 22. b6 {[%clk 0:02:28.9]}
22... cxb6 {[%clk 0:02:25.6]} 23. cxd6 {[%clk 0:02:21.5]} 23... Qf7 {[%clk
0:01:48]} 24. Qg4 {[%clk 0:02:09.3]} 24... Rxc1 {[%clk 0:01:40.6]} 25. Rxc1
{[%clk 0:02:10.2]} 25... Qxd5 {[%clk 0:01:31]} 26. Rc7+ {[%clk 0:01:49.6]} 26...
Kh8 {[%clk 0:01:30.4]} 27. h4 {[%clk 0:01:47.5]} 27... Ne6 {[%clk 0:01:01.5]}
28. Re7 {[%clk 0:01:47.1]} 28... Nf4 {[%clk 0:00:26.2]} 29. Qd7 {[%clk
0:01:40.8]} 29... Qg8 {[%clk 0:00:11.6]} 30. Qxb7 {[%clk 0:01:35.2]} 30... g5
{[%clk 0:00:06.3]} 31. h5 {[%clk 0:01:30.8]} 31... g4 {[%clk 0:00:06.1]} 32. g3
{[%clk 0:01:24.5]} 32... Nh3+ {[%clk 0:00:05.7]} 33. Kg2 {[%clk 0:01:21.2]}
33... b5 {[%clk 0:00:02.3]} 34. Qxb5 {[%clk 0:01:19]} 34... Nxf2 {[%clk
0:00:00.5]} 35. Qxe5+ {[%clk 0:01:17.9]} 1-0

[Event "Early-Titled-Tuesday-Blitz-May-14-2024"]
[Site "Chess.com"]
[Date "2024.05.14"]
[Round "4"]
[White "Arimin1329"]
[Black "capatl"]
[Result "1/2-1/2"]
[WhiteElo "2392"]
[BlackElo "2616"]
[TimeControl "180+1"]
[EndTime "8:40:08 PDT"]
[Termination "Game drawn by repetition"]

1. Nf3 {[%clk 0:02:56.9]} 1... b6 {[%clk 0:02:57.8]} 2. g3 {[%clk 0:02:52.3]}
2... Bb7 {[%clk 0:02:58.7]} 3. Bg2 {[%clk 0:02:53]} 3... c5 {[%clk 0:02:55.5]}
4. O-O {[%clk 0:02:52.4]} 4... Nf6 {[%clk 0:02:53.6]} 5. c4 {[%clk 0:02:48]}
5... e6 {[%clk 0:02:53]} 6. Nc3 {[%clk 0:02:47.9]} 6... Be7 {[%clk 0:02:44.9]}
7. d4 {[%clk 0:02:44.7]} 7... cxd4 {[%clk 0:02:40.8]} 8. Qxd4 {[%clk 0:02:42.5]}
8... a6 {[%clk 0:02:33.2]} 9. Rd1 {[%clk 0:02:39.2]} 9... d6 {[%clk 0:02:28.2]}
10. Bg5 {[%clk 0:02:37.9]} 10... Nbd7 {[%clk 0:02:25.4]} 11. b3 {[%clk
0:02:23.9]} 11... O-O {[%clk 0:02:21.6]} 12. Rac1 {[%clk 0:02:13.7]} 12... Re8
{[%clk 0:02:12.7]} 13. Rc2 {[%clk 0:02:06.3]} 13... Qc7 {[%clk 0:02:05.4]} 14.
Rcd2 {[%clk 0:02:03.5]} 14... Rac8 {[%clk 0:01:57.8]} 15. Qh4 {[%clk 0:01:54.5]}
15... b5 {[%clk 0:01:32.4]} 16. Rd4 {[%clk 0:01:47.4]} 16... bxc4 {[%clk
0:01:19.6]} 17. Rxc4 {[%clk 0:01:44.9]} 17... Qa5 {[%clk 0:01:20.2]} 18. Rxc8
{[%clk 0:01:36.2]} 18... Rxc8 {[%clk 0:01:15.4]} 19. Na4 {[%clk 0:01:36]} 19...
h6 {[%clk 0:01:06.8]} 20. Be3 {[%clk 0:01:33.3]} 20... Nd5 {[%clk 0:01:03.9]}
21. Rxd5 {[%clk 0:01:15.1]} 21... Qxd5 {[%clk 0:01:02.3]} 22. Qxe7 {[%clk
0:01:13.3]} 22... Qd1+ {[%clk 0:01:02.3]} 23. Bf1 {[%clk 0:01:13.6]} 23... Bxf3
{[%clk 0:00:58.6]} 24. exf3 {[%clk 0:01:02.4]} 24... Ne5 {[%clk 0:00:56.3]} 25.
f4 {[%clk 0:00:35.4]} 25... Nf3+ {[%clk 0:00:50.3]} 26. Kg2 {[%clk 0:00:34.9]}
26... Ne1+ {[%clk 0:00:47.6]} 27. Kg1 {[%clk 0:00:31]} 27... Nf3+ {[%clk
0:00:33.2]} 28. Kg2 {[%clk 0:00:30.7]} 28... Ne1+ {[%clk 0:00:30.5]} 29. Kg1
{[%clk 0:00:25.2]} 29... Nf3+ {[%clk 0:00:20]} 1/2-1/2

[Event "Early-Titled-Tuesday-Blitz-May-14-2024"]
[Site "Chess.com"]
[Date "2024.05.14"]
[Round "4"]
[White "ChessQueen"]
[Black "Baronessa08"]
[Result "1-0"]
[WhiteElo "2790"]
[BlackElo "2591"]
[TimeControl "180+1"]
[EndTime "8:40:09 PDT"]
[Termination "ChessQueen won by resignation"]

1. e4 {[%clk 0:03:00.9]} 1... e5 {[%clk 0:02:59.2]} 2. Nf3 {[%clk 0:03:00.1]}
2... Nc6 {[%clk 0:02:59.3]} 3. Bb5 {[%clk 0:02:59.9]} 3... Nf6 {[%clk
0:02:58.3]} 4. d4 {[%clk 0:02:59.5]} 4... a6 {[%clk 0:02:12.4]} 5. Ba4 {[%clk
0:02:57]} 5... b5 {[%clk 0:02:06.6]} 6. Bb3 {[%clk 0:02:46]} 6... Bb4+ {[%clk
0:02:03.1]} 7. c3 {[%clk 0:02:41.8]} 7... Bd6 {[%clk 0:01:34.2]} 8. dxe5 {[%clk
0:02:41.5]} 8... Bxe5 {[%clk 0:01:34.5]} 9. Nxe5 {[%clk 0:02:37.9]} 9... Nxe5
{[%clk 0:01:35.4]} 10. f4 {[%clk 0:02:36.1]} 10... Nc4 {[%clk 0:01:34.5]} 11. e5
{[%clk 0:02:29.2]} 11... Ne4 {[%clk 0:01:25.6]} 12. O-O {[%clk 0:02:27.1]} 12...
Bb7 {[%clk 0:01:22.5]} 13. Bc2 {[%clk 0:02:25.1]} 13... d5 {[%clk 0:01:17.1]}
14. Qe2 {[%clk 0:02:13.1]} 14... O-O {[%clk 0:00:59.4]} 15. b3 {[%clk
0:02:11.2]} 15... Nb6 {[%clk 0:00:59.6]} 16. Bb2 {[%clk 0:02:09.1]} 16... f5
{[%clk 0:00:53.4]} 17. exf6 {[%clk 0:02:06.2]} 17... Qxf6 {[%clk 0:00:51.9]} 18.
Nd2 {[%clk 0:02:01.6]} 18... Nxd2 {[%clk 0:00:37.5]} 19. Qxd2 {[%clk 0:02:01.4]}
19... c5 {[%clk 0:00:33.8]} 20. Rae1 {[%clk 0:01:55.9]} 20... Rae8 {[%clk
0:00:31.7]} 21. Qd3 {[%clk 0:01:51.7]} 21... g6 {[%clk 0:00:31.7]} 22. Rxe8
{[%clk 0:01:43.5]} 22... Rxe8 {[%clk 0:00:31.5]} 23. f5 {[%clk 0:01:44.1]} 23...
g5 {[%clk 0:00:23.7]} 24. Bc1 {[%clk 0:01:42.5]} 24... h6 {[%clk 0:00:20.7]} 25.
Qg3 {[%clk 0:01:39.5]} 25... d4 {[%clk 0:00:18.3]} 26. h4 {[%clk 0:01:36.5]}
26... Re2 {[%clk 0:00:11.6]} 27. hxg5 {[%clk 0:01:28.3]} 27... hxg5 {[%clk
0:00:10.4]} 28. Bxg5 {[%clk 0:01:22.6]} 28... Qg7 {[%clk 0:00:10.2]} 29. f6
{[%clk 0:01:19.5]} 29... Rxg2+ {[%clk 0:00:04.7]} 30. Qxg2 {[%clk 0:01:18.2]}
30... Bxg2 {[%clk 0:00:05]} 31. fxg7 {[%clk 0:01:16.7]} 31... Bxf1 {[%clk
0:00:05.1]} 32. Kxf1 {[%clk 0:01:16.9]} 32... dxc3 {[%clk 0:00:05.4]} 33. Be3
{[%clk 0:01:04.1]} 33... Nd5 {[%clk 0:00:03.9]} 34. Bxc5 {[%clk 0:01:03.7]}
34... Kxg7 {[%clk 0:00:03.8]} 35. Ke2 {[%clk 0:01:01.1]} 35... Kf6 {[%clk
0:00:04.3]} 36. Kd3 {[%clk 0:01:00.7]} 36... Ke5 {[%clk 0:00:04.3]} 37. Bd4+
{[%clk 0:01:00.3]} 1-0